bitfinex-derivatives/quotes_ETHF0:USTF0_20260308
["timestamp","ask_amount","ask_price","bid_price","bid_amount"]
[1772987065648,0.56465383,1942.4,1941.6,0.56474361]
[1772987068748,0.00445813,1942.4,1941.8,0.56474361]
[1772987069644,0.8175657,1942.8,1942.0,0.56474361]
[1772987070646,0.81866659,1942.8,1942.0,0.56474361]
[1772987071041,0.25847089,1942.8,1942.0,0.56474361]
[1772987072147,0.81866659,1942.8,1942.0,0.56474361]
[1772987073352,0.00110089,1942.8,1942.2,0.56587231]
[1772987075448,0.57559137,1942.8,1942.3,0.56587231]
[1772987081850,0.57559137,1942.8,1941.9,0.56587231]
[1772987082053,0.57559137,1942.8,1942.0,0.56587231]
[1772987084258,0.57559137,1942.8,1942.1,0.56587231]
[1772987084654,0.57559137,1942.8,1942.0,8.36387231]
[1772987085149,0.57559137,1942.8,1942.1,0.56587231]
[1772987087157,0.00110089,1942.8,1942.1,0.56587231]
[1772987087658,0.57559137,1942.8,1942.1,0.56587231]
[1772987095061,0.57559137,1942.8,1942.2,8.40787231]
[1772987095363,0.57559137,1942.8,1942.3,0.56587231]
[1772987101365,0.57559137,1942.8,1942.2,7.842]
[1772987101665,0.57559137,1942.8,1942.1,8.42187231]
[1772987102461,0.57449048,1942.6,1941.9,0.56587231]
[1772987102861,0.59657548,1942.6,1941.9,0.56587231]
[1772987103864,0.59657548,1942.6,1942.1,0.60422467]
[1772987105062,0.00110089,1942.8,1942.1,0.60422467]
[1772987105463,0.54533536,1942.8,1942.1,0.60422467]
[1772987106067,0.54533536,1942.8,1942.1,8.46922467]
[1772987106368,0.54533536,1942.8,1942.2,0.58698633]
[1772987107464,0.00110089,1942.8,1942.2,0.58698633]
[1772987110069,0.54423447,1943.1,1942.2,0.58698633]
[1772987117574,0.25732,1943.2,1942.2,0.58698633]
[1772987118175,0.80155447,1943.2,1942.2,0.58698633]
[1772987118878,0.54423447,1943.1,1942.2,0.58698633]
[1772987120979,0.54423447,1943.1,1942.3,8.46698633]
[1772987121180,0.54423447,1943.1,1942.4,0.58698633]
[1772987130388,0.25734,1943.0,1942.4,0.58698633]
[1772987130588,0.54423447,1942.9,1942.4,0.58698633]
[1772987130986,0.54423447,1942.7,1941.8,0.58698633]
[1772987131180,0.54423447,1942.7,1942.0,0.58698633]
[1772987137087,0.54423447,1942.7,1942.1,0.57544607]
[1772987142389,0.54423447,1942.7,1941.7,0.57544607]
[1772987142390,0.54692986,1942.5,1941.7,0.57544607]
[1772987142687,0.54692986,1942.1,1941.7,0.57544607]
[1772987143591,0.54692986,1942.1,1941.8,0.57544607]
[1772987144385,0.54692986,1942.1,1941.7,0.57544607]
[1772987144590,0.54692986,1942.1,1941.6,8.44644607]
[1772987145587,0.54692986,1942.1,1941.7,0.57544607]
[1772987151494,0.54692986,1942.3,1941.7,0.57544607]
[1772987151992,0.54692986,1942.6,1941.8,0.57544607]
[1772987152192,0.54692986,1942.6,1942.0,0.57544607]
[1772987155400,0.54692986,1942.2,1941.8,0.57544607]
[1772987158405,0.54692986,1942.2,1941.7,8.52444607]
[1772987158604,0.54692986,1942.2,1941.8,0.57544607]
[1772987160606,0.54692986,1942.0,1941.6,0.57544607]
[1772987177116,0.5615539,1942.4,1941.6,0.57544607]
[1772987177813,0.5615539,1942.2,1941.6,0.57544607]
[1772987180721,0.5615539,1942.3,1941.6,0.57544607]
[1772987185924,0.5615539,1942.4,1941.6,0.57544607]
[1772987188926,0.5615539,1942.2,1941.6,0.57544607]
[1772987192126,0.5615539,1942.4,1941.6,0.57544607]
[1772987194026,0.5615539,1942.4,1941.7,0.59992244]
[1772987199328,0.5615539,1942.4,1941.6,8.197]
[1772987199329,0.5615539,1942.4,1941.8,0.59992244]
[1772987208441,0.85052139,1942.5,1941.8,0.59992244]
[1772987209041,0.59310139,1942.4,1941.8,0.59992244]
[1772987216052,0.59310139,1942.4,1941.5,0.59992244]
[1772987235164,0.60176969,1942.2,1941.5,0.59992244]
[1772987238559,0.60176969,1942.0,1941.5,0.59992244]
[1772987238767,0.60176969,1941.9,1941.3,0.59880077]
[1772987246869,0.60176969,1941.9,1941.3,0.00369687]
[1772987249674,0.60176969,1941.9,1941.3,0.59880077]
[1772987261578,0.54546181,1941.8,1941.3,0.59880077]
[1772987263582,0.54546181,1941.6,1941.3,0.00369687]
[1772987263782,0.54546181,1941.6,1941.2,0.5617556]
[1772987263783,0.54915868,1941.6,1941.2,0.5617556]
[1772987264988,0.54915868,1941.6,1941.2,0.42092654]
[1772987268188,0.54546181,1941.4,1941.2,0.00537621]
[1772987268383,0.54546181,1941.2,1940.7,0.5617556]
[1772987268581,0.54546181,1941.0,1940.7,0.55194873]
[1772987268886,0.54546181,1941.0,1940.5,0.5617556]
[1772987269386,0.54546181,1941.0,1940.5,0.56589921]
[1772987275490,0.54546181,1941.2,1940.5,0.56589921]
[1772987281091,0.54546181,1941.3,1940.5,0.56589921]
[1772987282292,2.60824437,1941.3,1940.6,0.5617556]
[1772987282491,0.54546181,1941.2,1940.6,0.5617556]
[1772987283894,0.57613457,1941.6,1940.7,0.57019751]
[1772987284196,2.63891713,1941.6,1940.7,0.57019751]
[1772987284391,0.5724377,1941.5,1940.7,0.57019751]
[1772987284792,0.60275775,1941.6,1940.9,0.59637577]
[1772987288495,0.00369687,1941.6,1940.9,0.59637577]
[1772987288893,0.60275775,1941.6,1940.9,0.59637577]
[1772987291701,0.59906088,1941.5,1940.9,0.59637577]
[1772987297806,0.00369687,1941.6,1940.9,0.59637577]
[1772987298305,0.00369687,1941.6,1941.1,0.59637577]
[1772987299200,0.60275775,1941.6,1941.1,0.59637577]
[1772987315424,0.60275775,1941.6,1940.9,0.55316436]
[1772987315825,0.00369687,1941.6,1941.1,0.55316436]
[1772987316825,0.56900194,1941.6,1941.1,0.55316436]
[1772987319829,0.00369687,1941.6,1941.1,0.55316436]
[1772987321025,0.56530507,1941.8,1941.1,0.55316436]
[1772987322029,0.57068128,1941.8,1941.1,0.55316436]
[1772987323226,0.57068128,1941.8,1941.3,0.55316436]
[1772987323227,0.00537621,1941.8,1941.3,0.55316436]
[1772987323432,0.57068128,1941.8,1941.3,0.55316436]
[1772987326933,0.57068128,1941.8,1941.1,0.55316436]
[1772987344950,0.00537621,1941.8,1941.1,0.55316436]
[1772987354862,0.59447805,1941.8,1941.1,0.55316436]
[1772987355062,0.59447805,1941.8,1941.3,0.57323656]
[1772987362465,0.59447805,1941.8,1941.4,0.57323656]
[1772987375577,0.59447805,1941.8,1941.2,0.5597498]
[1772987378276,0.59447805,1941.8,1941.0,8.233]
[1772987378480,0.59447805,1941.8,1941.0,8.7927498]
[1772987378681,0.59447805,1941.8,1941.0,0.5597498]
[1772987378874,0.59447805,1941.8,1941.0,8.8027498]
[1772987380071,0.59447805,1941.8,1941.0,0.5597498]
[1772987385687,0.59034339,1941.5,1941.0,0.5597498]
[1772987391988,0.26288621,1941.8,1940.6,0.5597498]
[1772987391989,0.59034339,1941.3,1940.6,0.5597498]
[1772987393589,0.59034339,1941.3,1940.8,0.5597498]
[1772987396190,0.59034339,1941.3,1940.7,0.5597498]
[1772987400993,0.59034339,1941.1,1940.5,8.91889341]
[1772987401295,0.59034339,1940.7,1940.1,8.9167498]
[1772987401794,0.59034339,1940.7,1940.0,0.5597498]
[1772987402093,0.59034339,1940.5,1940.0,0.5647533]
[1772987402491,0.25762,1940.9,1940.0,0.5647533]
[1772987402492,0.59034339,1940.7,1940.0,0.5647533]
[1772987402996,0.55590566,1941.1,1940.4,0.56495553]
[1772987403196,0.55590566,1941.1,1940.5,0.56495553]
[1772987425916,2.06335809,1941.3,1940.6,0.55073913]
[1772987425917,0.55732513,1941.3,1940.6,0.55073913]
[1772987428418,0.55732513,1941.0,1940.5,0.55073913]
[1772987430122,2.06335809,1941.3,1940.5,0.55073913]
[1772987430323,0.55732513,1941.2,1940.5,0.55073913]
[1772987442425,0.55732513,1941.2,1940.6,0.54635687]
[1772987443020,2.06335809,1941.3,1940.3,0.54635687]
[1772987443021,0.58911728,1941.0,1940.3,0.54635687]
[1772987443222,2.06335809,1941.3,1940.3,0.54635687]
[1772987443427,0.58911728,1941.1,1940.3,0.54635687]
[1772987447226,0.58911728,1941.4,1940.3,0.54635687]
[1772987454234,0.58911728,1941.4,1940.5,0.54635687]
[1772987454436,0.58911728,1941.4,1940.7,0.54635687]
[1772987457138,0.58911728,1941.7,1940.7,0.54635687]
[1772987458540,0.58911728,1941.6,1940.7,0.54635687]
[1772987468749,0.58911728,1941.6,1940.5,0.54586387]
[1772987469046,0.55452961,1941.5,1940.5,0.54586387]
[1772987469246,0.55452961,1941.3,1940.5,0.54586387]
[1772987469549,0.55452961,1941.0,1940.0,0.55086737]
[1772987469951,0.55452961,1941.0,1940.0,0.0050035]
[1772987471143,0.55452961,1941.0,1940.0,0.55086737]
[1772987473747,0.55452961,1941.0,1940.0,0.0050035]
[1772987473950,0.55990582,1941.8,1940.8,0.54586387]
[1772987474353,0.55990582,1941.8,1940.9,0.54586387]
[1772987474750,0.55452961,1942.5,1941.1,0.54586387]
[1772987475752,0.55867322,1942.5,1941.1,0.54586387]
[1772987476349,0.55452961,1942.2,1941.1,0.54586387]
[1772987481153,0.55452961,1942.1,1941.1,0.54586387]
[1772987488159,0.55452961,1942.1,1941.2,0.54586387]
[1772987497269,0.26156361,1942.5,1941.2,0.54586387]
[1772987497471,0.57768835,1942.4,1941.4,0.57467302]
[1772987497774,0.57768835,1942.4,1941.4,0.5809424]
[1772987505972,0.57768835,1942.4,1941.4,0.00626938]
[1772987506278,0.57768835,1942.0,1940.6,0.57467302]
[1772987506573,0.57768835,1942.0,1940.6,40.8]
[1772987506779,0.57768835,1942.0,1940.7,0.57467302]
[1772987507278,0.57768835,1942.0,1940.8,0.57467302]
[1772987518890,0.57768835,1941.8,1940.8,0.57467302]
[1772987519091,0.57768835,1941.6,1940.7,0.58053745]
[1772987520585,0.25754,1941.5,1940.7,0.58053745]
[1772987520888,0.57768835,1941.4,1940.7,0.58053745]
[1772987522894,0.55188447,1941.8,1940.7,0.58053745]
[1772987531200,0.55188447,1941.6,1940.7,0.58053745]
[1772987531601,0.55188447,1941.3,1940.7,0.58053745]
[1772987537006,0.55188447,1941.5,1940.9,0.56135099]
[1772987547512,0.55188447,1941.5,1940.8,0.56135099]
[1772987547513,2.06381768,1941.5,1940.8,0.56135099]
[1772987547710,0.55188447,1941.4,1940.7,0.56721542]
[1772987553921,0.57411894,1941.2,1940.7,0.00586443]
[1772987554120,0.57411894,1941.0,1940.7,0.00586443]
[1772987554419,0.57795033,1941.0,1940.7,0.00586443]
[1772987555817,0.57795033,1941.0,1940.5,0.59059829]
[1772987556015,0.57411894,1940.8,1940.4,0.59059829]
[1772987556317,0.57411894,1940.8,1940.2,0.59059829]
[1772987556923,0.57411894,1940.8,1940.2,0.59467364]
[1772987561327,0.57411894,1940.4,1940.0,0.59059829]
[1772987561528,0.19089828,1940.4,1940.0,0.59059829]
[1772987561723,0.3823213,1940.4,1940.0,0.59059829]
[1772987561928,0.57411894,1940.4,1940.0,0.59059829]
[1772987562227,0.09194297,1940.4,1940.0,0.59059829]
[1772987562429,1.76724275,1940.5,1940.0,0.59564913]
[1772987565334,0.57411894,1940.2,1939.8,0.59059829]
[1772987566233,0.57411894,1940.2,1939.8,0.59477461]
[1772987566833,0.57411894,1940.3,1939.8,0.59477461]
[1772987572539,0.57411894,1940.3,1939.5,0.59059829]
[1772987572939,0.57411894,1940.1,1939.1,0.59059829]
[1772987573238,0.57411894,1940.1,1937.4,12.01375]
[1772987573239,0.57411894,1939.5,1938.6,0.59059829]
[1772987573435,0.57411894,1939.3,1938.6,0.59676356]
[1772987576540,7.32311894,1939.3,1938.6,0.59676356]
[1772987577039,0.57411894,1939.2,1938.6,0.59676356]
[1772987577940,6.749,1939.3,1938.1,0.59059829]
[1772987577941,0.57411894,1939.0,1938.1,0.59059829]
[1772987578141,0.57411894,1938.8,1937.5,0.59059829]
[1772987578333,7.00689,1938.9,1937.5,0.59059829]
[1772987578334,0.57411894,1938.6,1937.5,0.59059829]
[1772987579036,0.57411894,1938.6,1937.5,0.59528788]
[1772987579944,6.749,1938.7,1937.5,0.00468959]
[1772987579945,0.54950915,1938.4,1937.5,0.00468959]
[1772987580241,6.34248,1939.4,1937.2,0.59059829]
[1772987580242,0.54950915,1938.2,1937.2,0.59059829]
[1772987580535,6.75,1938.2,1937.2,0.59059829]
[1772987580739,7.29950915,1938.2,1937.2,0.59059829]
[1772987581033,0.54950915,1938.1,1937.2,0.59059829]
[1772987581232,0.55343356,1938.1,1937.2,0.59717901]
[1772987581939,0.5025659,1938.0,1937.2,0.59717901]
[1772987582638,6.75392441,1938.1,1937.2,0.59717901]
[1772987582639,0.00392441,1938.1,1937.2,0.59717901]
[1772987582840,0.50661919,1938.1,1937.2,0.59717901]
[1772987583844,0.00392441,1938.1,1937.2,9.13717901]
[1772987584044,0.00392441,1938.1,1937.3,0.60215995]
[1772987584541,0.5268906,1938.4,1937.3,0.60215995]
[1772987584741,0.53130759,1939.0,1937.5,0.59774964]
[1772987585140,0.53130759,1939.0,1937.7,0.59774964]
[1772987585442,0.53130759,1939.4,1937.9,0.59774964]
[1772987585742,0.5170627,1939.4,1938.1,0.59774964]
[1772987586042,0.5170627,1939.4,1938.2,0.59774964]
[1772987590358,0.5170627,1939.4,1938.3,0.59774964]
[1772987590751,0.52011825,1939.2,1938.3,0.59774964]
[1772987591246,0.52011825,1939.0,1938.1,0.59774964]
[1772987591446,0.52011825,1938.8,1937.5,8.551]
[1772987591653,0.52011825,1938.6,1937.6,0.59774964]
[1772987595858,0.53609326,1938.9,1937.6,0.59774964]
[1772987596863,0.53609326,1938.9,1937.8,0.59774964]
[1772987597068,0.53609326,1938.9,1938.0,0.59774964]
[1772987597368,0.53609326,1938.9,1938.2,0.59774964]
[1772987598473,0.004647,1939.4,1938.4,0.59774964]
[1772987598665,0.004647,1939.4,1938.6,0.59774964]
[1772987598971,0.54583618,1939.4,1938.6,0.60157116]
[1772987607177,0.54583618,1939.4,1938.7,0.59774964]
[1772987615779,0.54786075,1939.2,1937.9,0.56181001]
[1772987615988,0.54786075,1938.7,1937.9,0.56181001]
[1772987616781,0.54786075,1938.7,1937.9,0.56751301]
[1772987617083,0.54786075,1938.9,1937.9,0.56751301]
[1772987617682,0.54502486,1939.1,1938.1,0.56181001]
[1772987618381,0.80285486,1939.3,1938.1,0.56181001]
[1772987618578,0.80285486,1939.3,1938.3,0.56181001]
[1772987619390,0.54502486,1939.2,1938.3,0.56181001]
[1772987620090,0.54949597,1939.0,1938.3,0.56181001]
[1772987621188,0.80735597,1939.1,1938.3,0.56181001]
[1772987621388,0.54949597,1939.0,1938.3,0.56181001]
[1772987624092,0.55495433,1938.8,1938.0,0.56181001]
[1772987624994,0.004647,1939.4,1938.0,0.56181001]
[1772987624995,0.55495433,1938.6,1938.0,0.56181001]
[1772987625195,0.55495433,1938.6,1937.9,0.56751301]
[1772987629895,0.54788413,1938.8,1937.9,0.56751301]
[1772987637300,0.54788413,1938.8,1938.0,0.56181001]
[1772987637612,0.54788413,1938.8,1937.9,0.56751301]
[1772987638402,0.56789012,1938.6,1937.9,0.56751301]
[1772987644110,0.25794,1938.5,1937.9,0.005703]
[1772987644302,0.55227941,1938.4,1937.9,0.005703]
[1772987644703,0.55227941,1938.4,1937.9,0.58653009]
[1772987652615,0.00257421,1938.4,1937.9,0.58653009]
[1772987655719,0.01383386,1939.0,1937.9,0.58653009]
[1772987656416,0.25786,1939.1,1937.9,0.58653009]
[1772987656618,0.27169386,1939.1,1937.9,0.58653009]
[1772987658819,0.01641653,1939.3,1938.1,0.5967782]
[1772987662227,0.03577069,1939.2,1938.1,0.5967782]
[1772987662928,0.03577069,1939.2,1938.2,0.58710112]
[1772987664126,0.03501866,1939.1,1938.2,0.58710112]
[1772987668632,0.25787,1939.0,1938.2,0.58710112]
[1772987670435,2.0688985,1938.7,1938.2,0.58710112]
[1772987671633,0.25793,1938.6,1938.2,0.58710112]
[1772987678953,0.25793,1938.6,1938.0,0.61093507]
[1772987679250,12.68822,1938.9,1937.1,0.61093507]
[1772987679446,0.58823427,1937.5,1936.0,0.59243713]
[1772987679948,0.58823427,1937.3,1936.2,0.68227616]
[1772987680347,0.58823427,1937.1,1936.2,0.68730742]
[1772987680549,0.58823427,1937.1,1936.2,0.59746839]
[1772987680747,0.74819985,1937.0,1936.2,0.59746839]
[1772987680943,0.58823427,1936.9,1936.2,0.59746839]
[1772987681653,0.00379095,1937.3,1936.2,0.59746839]
[1772987682252,0.58666664,1937.3,1936.2,0.59746839]
[1772987683758,0.58287569,1937.1,1936.2,0.59746839]
[1772987684957,0.58823427,1937.2,1936.2,0.59746839]
[1772987685659,0.58823427,1937.0,1936.2,0.59746839]
[1772987687559,1.62751311,1937.1,1936.2,0.59746839]
[1772987687960,0.58823427,1937.1,1936.2,0.59746839]
[1772987688156,0.58823427,1936.9,1936.2,0.59746839]
[1772987688864,0.82820123,1936.8,1936.2,0.59746839]
[1772987689063,0.58823427,1936.7,1936.2,0.59746839]
[1772987690168,0.58823427,1936.9,1936.2,0.59746839]
[1772987690362,0.58823427,1937.0,1936.2,0.59746839]
[1772987690661,0.31994768,1936.8,1936.2,0.59746839]
[1772987690861,0.58823427,1937.0,1936.2,0.59746839]
[1772987691252,0.58823427,1936.8,1936.2,0.59746839]
[1772987692558,0.58823427,1936.8,1936.2,0.00503126]
[1772987692764,0.58823427,1936.6,1936.2,0.00503126]
[1772987693063,0.58823427,1936.8,1936.2,0.59746839]
[1772987693362,0.39994492,1936.7,1936.2,0.59746839]
[1772987693561,0.58823427,1936.6,1936.0,0.59243713]
[1772987693756,0.98817919,1936.7,1936.0,0.59243713]
[1772987693958,0.58823427,1936.6,1936.0,0.59243713]
[1772987694659,0.58823427,1936.4,1936.0,0.59777166]
[1772987695862,0.90816542,1936.6,1936.0,0.59777166]
[1772987696063,0.58823427,1936.5,1936.0,0.59777166]
[1772987697569,0.58823427,1936.5,1935.2,0.59243713]
[1772987697862,0.58823427,1935.5,1934.6,1.32161601]
[1772987698163,0.58823427,1935.3,1934.4,0.59243713]
[1772987698369,0.58823427,1935.3,1934.7,0.59243713]
[1772987698665,0.58823427,1935.3,1934.4,0.59243713]
[1772987698866,0.58823427,1935.1,1934.5,0.59243713]
[1772987699263,0.58823427,1935.1,1934.4,0.00553564]
[1772987699464,0.58823427,1934.9,1934.4,0.00553564]
[1772987699665,0.58823427,1935.0,1934.4,0.59797277]
[1772987699866,0.58823427,1935.0,1934.4,0.00553564]
[1772987700065,0.58823427,1934.9,1934.4,0.59797277]
[1772987700270,0.58823427,1934.9,1934.5,0.59243713]
[1772987700470,0.58823427,1934.9,1934.4,0.00553564]
[1772987700765,0.00505174,1935.3,1933.7,0.59243713]
[1772987700766,0.58823427,1934.7,1933.7,0.59243713]
[1772987700969,0.08015031,1934.8,1934.1,0.59243713]
[1772987701165,0.58823427,1934.8,1934.1,0.59243713]
[1772987701363,0.58823427,1934.8,1934.0,8.302]
[1772987701364,0.58823427,1934.8,1934.4,0.59243713]
[1772987701568,4.4822616,1934.7,1934.4,0.00614743]
[1772987701871,0.00505174,1935.3,1934.8,0.59243713]
[1772987702068,0.58823427,1936.2,1934.8,0.59243713]
[1772987702272,0.58823427,1936.2,1934.9,0.59243713]
[1772987703173,0.59403829,1936.2,1935.1,0.55423248]
[1772987703569,0.59403829,1936.2,1935.3,0.55423248]
[1772987704271,0.59403829,1936.2,1935.4,0.55423248]
[1772987704770,0.59403829,1936.2,1935.6,0.58584926]
[1772987704977,0.59403829,1936.2,1935.1,0.58584926]
[1772987706470,0.58489126,1936.0,1934.6,0.58584926]
[1772987706774,0.58489126,1935.8,1934.6,0.58584926]
[1772987707167,0.58489126,1935.8,1934.7,0.58584926]
[1772987707566,0.58489126,1935.8,1934.8,1.4115565]
[1772987707770,0.58489126,1936.0,1934.9,0.58584926]
[1772987707970,0.59069528,1936.2,1935.1,0.58584926]
[1772987708272,0.59069528,1936.2,1935.2,0.58584926]
[1772987708678,0.59069528,1936.2,1935.5,0.58584926]
[1772987709176,0.59069528,1936.2,1935.6,0.58584926]
[1772987709778,0.00580402,1936.2,1935.6,1.99740576]
[1772987710080,0.59069528,1936.2,1935.6,0.58584926]
[1772987710375,0.59069528,1936.2,1935.7,1.99740576]
[1772987710683,0.59069528,1936.2,1935.2,0.58584926]
[1772987710872,0.59069528,1936.2,1935.4,0.58584926]
[1772987711379,0.59069528,1936.2,1935.7,0.58584926]
[1772987711682,0.59069528,1936.2,1935.5,0.58584926]
[1772987712478,0.59069528,1936.2,1935.7,0.58584926]
[1772987712780,0.59069528,1936.2,1935.5,0.58584926]
[1772987713479,0.59069528,1936.2,1935.6,0.58584926]
[1772987713673,0.00580402,1936.2,1935.6,0.58584926]
[1772987713878,0.00580402,1936.2,1935.8,0.58584926]
[1772987714176,0.59069528,1936.2,1935.6,0.58584926]
[1772987714477,0.59069528,1936.2,1935.6,0.59047116]
[1772987714676,0.00580402,1936.2,1935.6,0.59047116]
[1772987714875,0.59069528,1936.2,1935.8,0.58584926]
[1772987716277,0.59069528,1936.2,1935.6,0.59047116]
[1772987716481,0.59069528,1936.2,1935.7,0.58584926]
[1772987717377,0.00580402,1936.2,1935.9,0.58584926]
[1772987717573,0.58489126,1936.3,1935.9,0.58584926]
[1772987717977,0.58489126,1936.3,1935.7,0.58584926]
[1772987718172,0.58489126,1936.3,1935.8,0.58584926]
[1772987718571,0.58884996,1936.3,1935.8,0.58584926]
[1772987719380,0.58884996,1936.3,1935.6,0.59047116]
[1772987719580,0.58884996,1936.3,1935.6,2.00202766]
[1772987720675,0.58884996,1936.3,1935.7,0.58584926]
[1772987720872,0.58884996,1936.3,1935.8,0.58584926]
[1772987720873,0.0039587,1936.3,1935.8,0.58584926]
[1772987721074,0.2582,1936.6,1935.8,0.58584926]
[1772987721283,0.84309126,1936.6,1936.0,0.58584926]
[1772987721782,0.2582,1936.6,1936.2,0.58584926]
[1772987721983,0.84704939,1936.6,1936.2,0.58584926]
[1772987722183,0.58489126,1936.5,1935.7,0.58584926]
[1772987722389,0.58489126,1936.5,1936.0,0.58584926]
[1772987722887,0.00395813,1936.6,1936.2,0.58584926]
[1772987723285,0.00395813,1936.6,1936.4,1.4115565]
[1772987723485,0.58489126,1936.7,1936.4,1.4115565]
[1772987723787,0.58489126,1937.1,1936.7,0.58584926]
[1772987724182,0.58489126,1937.1,1936.5,0.58584926]
[1772987724485,0.58914904,1937.1,1936.5,0.58584926]
[1772987724881,0.58914904,1937.1,1936.6,0.58584926]
[1772987725184,0.00425778,1937.1,1936.6,0.58584926]
[1772987725386,0.00425778,1937.1,1936.8,0.58584926]
[1772987725586,0.25812,1937.2,1936.8,0.58584926]
[1772987725789,0.25812,1937.2,1936.9,1.4115565]
[1772987725984,0.25812,1937.2,1936.9,1.99740576]
[1772987726287,1.73489126,1937.3,1937.1,1.4115565]
[1772987726480,0.58489126,1937.2,1936.7,0.58584926]
[1772987727190,1.73932279,1937.3,1936.7,0.58584926]
[1772987727381,0.58489126,1937.2,1936.9,1.4115565]
[1772987727586,0.58489126,1937.2,1936.7,0.58584926]
[1772987727886,1.41253153,1937.3,1937.1,0.58584926]
[1772987728086,1.15443153,1937.3,1937.1,0.58584926]
[1772987728286,0.58489126,1937.5,1937.2,1.4115565]
[1772987728881,0.58489126,1937.8,1937.4,1.99740576]
[1772987729087,0.58489126,1937.8,1937.2,0.58584926]
[1772987729386,0.58489126,1937.4,1936.3,0.58584926]
[1772987729692,0.58489126,1937.2,1936.3,0.58584926]
[1772987730191,0.58489126,1937.2,1936.6,1.4115565]
[1772987730192,0.25813,1937.1,1936.6,1.4115565]
[1772987730389,0.58489126,1937.0,1936.3,0.59149439]
[1772987730587,0.58489126,1937.0,1936.5,1.4115565]
[1772987731093,0.58489126,1937.0,1936.6,1.4115565]
[1772987731293,0.58489126,1936.8,1936.3,0.59149439]
[1772987731488,0.84304126,1936.9,1936.3,0.59149439]
[1772987731792,0.84304126,1936.9,1936.4,0.58584926]
[1772987731981,0.58489126,1936.8,1936.4,0.58584926]
[1772987732182,0.58489126,1936.8,1936.7,1.16958882]
[1772987732494,0.58489126,1936.8,1936.3,0.59149439]
[1772987732793,0.58489126,1936.8,1936.3,0.00564513]
[1772987732989,0.58489126,1936.8,1936.3,0.59820319]
[1772987733184,0.58489126,1936.8,1936.3,0.00564513]
[1772987733390,0.58069703,1936.6,1936.1,0.59255806]
[1772987734089,0.58069703,1936.4,1935.0,0.59255806]
[1772987734293,0.58069703,1936.2,1935.0,0.59255806]
[1772987734489,0.58683592,1936.2,1935.0,0.59799106]
[1772987735593,0.58069703,1935.8,1935.0,0.59799106]
[1772987738397,0.58069703,1936.1,1935.0,0.59799106]
[1772987738991,0.58069703,1935.9,1935.0,0.59799106]
[1772987739389,0.58069703,1935.7,1935.0,0.59799106]
[1772987739588,6.753,1936.0,1934.4,40.8]
[1772987739589,0.58069703,1935.3,1934.4,0.59255806]
[1772987739794,0.58069703,1935.1,1934.4,0.59255806]
[1772987739991,0.58069703,1935.5,1934.4,0.59255806]
[1772987740191,0.58069703,1935.8,1934.4,0.59255806]
[1772987740594,0.58069703,1935.8,1934.4,0.59898085]
[1772987741301,0.58683592,1936.2,1934.6,0.59255806]
[1772987741499,0.58069703,1936.0,1934.6,0.59255806]
[1772987741800,0.58069703,1936.0,1934.7,0.59255806]
[1772987745002,0.58069703,1936.0,1935.4,0.00090184]
[1772987745194,0.58069703,1936.0,1935.1,0.59255806]
[1772987745394,0.58069703,1935.8,1934.6,0.59255806]
[1772987745594,0.58069703,1935.6,1934.6,0.59255806]
[1772987745805,0.58069703,1935.4,1934.6,0.59255806]
[1772987746904,0.58069703,1935.4,1934.4,0.59898085]
[1772987748309,0.58069703,1935.6,1934.4,0.59898085]
[1772987748508,0.58069703,1935.6,1934.5,0.59255806]
[1772987749402,0.58069703,1935.8,1934.5,0.59255806]
[1772987750210,0.58069703,1936.0,1934.5,0.59255806]
[1772987750408,0.00613889,1936.2,1934.5,0.59255806]
[1772987750409,0.58069703,1935.8,1934.5,0.59255806]
[1772987752211,0.25829,1935.9,1934.5,0.59255806]
[1772987752415,0.83898703,1935.9,1934.5,0.59255806]
[1772987753118,0.58069703,1935.8,1934.5,0.59255806]
[1772987754219,0.58069703,1936.0,1934.7,0.59255806]
[1772987755311,0.58069703,1935.9,1934.7,0.59255806]
[1772987758816,0.58069703,1935.7,1934.0,0.08993259]
[1772987759114,0.58069703,1935.7,1933.3,0.59255806]
[1772987759115,0.58069703,1934.5,1933.3,0.59255806]
[1772987759306,0.58069703,1934.3,1933.3,0.59255806]
[1772987759708,0.58069703,1934.1,1933.3,0.59255806]
[1772987759912,0.58496534,1934.1,1933.3,0.59697965]
[1772987760113,0.58069703,1933.9,1933.3,0.59697965]
[1772987760311,0.24067481,1934.0,1933.3,0.59697965]
[1772987760612,0.00426831,1934.1,1933.3,0.59697965]
[1772987761515,0.58496534,1934.1,1933.3,0.59697965]
[1772987761717,1.04252187,1934.0,1933.3,0.59697965]
[1772987761912,0.58069703,1933.9,1933.3,0.59697965]
[1772987762113,1.04252187,1934.0,1933.3,0.59697965]
[1772987762319,0.58496534,1934.1,1933.3,0.59697965]
[1772987762518,1.70345213,1934.0,1933.3,0.59697965]
[1772987763310,0.00426831,1934.1,1933.3,0.59697965]
[1772987763913,0.59411982,1934.1,1933.3,0.59697965]
[1772987764219,0.84826151,1935.0,1933.3,0.59697965]
[1772987764418,0.60304179,1934.9,1933.8,0.58935151]
[1772987764819,0.60304179,1934.7,1933.8,0.58935151]
[1772987765216,0.60789486,1934.7,1933.8,0.58935151]
[1772987766321,0.00485307,1934.7,1933.8,0.58935151]
[1772987766916,0.24041769,1935.0,1933.8,0.58935151]
[1772987767923,0.24409006,1935.0,1933.8,0.58935151]
[1772987768123,0.84713185,1935.0,1933.8,0.58935151]
[1772987769022,0.00367237,1935.0,1933.8,0.58935151]
[1772987769624,0.60671416,1935.0,1933.8,0.58935151]
[1772987769823,0.60671416,1935.0,1934.0,0.58935151]
[1772987770123,0.00367237,1935.0,1934.0,0.58935151]
[1772987770324,0.00367237,1935.0,1934.1,0.58935151]
[1772987772129,0.60671416,1935.0,1934.1,0.58935151]
[1772987772423,0.00367237,1935.0,1934.1,0.58935151]
[1772987772629,0.00367237,1935.0,1934.1,41.38935151]
[1772987772925,0.60671416,1935.0,1934.2,0.58935151]
[1772987774032,0.00367237,1935.0,1934.2,0.58935151]
[1772987779532,0.00367237,1935.0,1934.3,40.8]
[1772987779733,0.00367237,1935.0,1934.4,0.58935151]
[1772987780031,0.60304179,1935.9,1934.6,0.58935151]
[1772987780236,0.60304179,1935.9,1934.8,0.58935151]
[1772987781025,0.60907567,1935.9,1934.8,0.5936609]
[1772987782035,0.00603388,1935.9,1935.0,0.58935151]
[1772987783936,0.60304179,1936.2,1935.0,0.58935151]
[1772987784136,0.60304179,1936.2,1935.2,0.58935151]
[1772987785032,0.60965893,1936.2,1935.4,0.58935151]
[1772987785736,0.60965893,1936.2,1935.5,0.58935151]
[1772987786734,0.60965893,1936.2,1934.8,0.00430939]
[1772987787037,0.60965893,1936.2,1935.0,0.58935151]
[1772987788636,0.60965893,1936.2,1935.2,0.58935151]
[1772987791547,0.60304179,1936.0,1935.2,0.58935151]
[1772987794343,0.55407739,1935.8,1934.8,0.00430939]
[1772987794551,0.55407739,1935.6,1934.8,0.00430939]
[1772987795948,0.55407739,1935.6,1934.8,0.59767543]
[1772987798250,0.55407739,1936.1,1934.8,0.59767543]
[1772987802353,0.56069453,1936.2,1935.0,0.59336604]
[1772987802653,0.56069453,1936.2,1935.2,0.59336604]